[Event "Rapid della Domenica"]
[Site "Chess.com"]
[Date "2020.05.24"]
[Round "4"]
[White "SanSecondoPR"]
[Black "sirmale49"]
[Result "1-0"]
[WhiteElo "1321"]
[BlackElo "1379"]
[TimeControl "720+3"]
[EndTime "7:37:38 PDT"]
[Termination "SanSecondoPR ha vinto per abbandono"]

1. e4 {[%clk 0:12:02.9]} 1... e5 {[%clk 0:11:59.8]} 2. d4 {[%clk 0:12:00.2]}
2... d6 {[%clk 0:11:58.2]} 3. dxe5 {[%clk 0:11:58.6]} 3... Nc6 {[%clk 0:11:49]}
4. exd6 {[%clk 0:11:58]} 4... Qxd6 {[%clk 0:11:48.1]} 5. Qxd6 {[%clk 0:11:56.3]}
5... cxd6 {[%clk 0:11:49.7]} 6. Nc3 {[%clk 0:11:52.2]} 6... Be6 {[%clk
0:11:49.3]} 7. Bg5 {[%clk 0:11:37.2]} 7... f6 {[%clk 0:11:47.6]} 8. Bh4 {[%clk
0:11:38.5]} 8... O-O-O {[%clk 0:11:37.7]} 9. O-O-O {[%clk 0:11:35.5]} 9... Nge7
{[%clk 0:11:31.8]} 10. Nf3 {[%clk 0:11:25.7]} 10... g5 {[%clk 0:11:31.1]} 11.
Bg3 {[%clk 0:11:25.8]} 11... Ng6 {[%clk 0:11:30.1]} 12. h4 {[%clk 0:10:59]}
12... g4 {[%clk 0:11:21.7]} 13. Nd2 {[%clk 0:10:50.4]} 13... h5 {[%clk
0:11:22.9]} 14. Bd3 {[%clk 0:10:32.7]} 14... Nce5 {[%clk 0:11:21.2]} 15. Be2
{[%clk 0:10:24.2]} 15... Bg7 {[%clk 0:10:41.2]} 16. f4 {[%clk 0:10:09.1]} 16...
gxf3 {[%clk 0:10:35.2]} 17. gxf3 {[%clk 0:10:06.2]} 17... Rd7 {[%clk 0:09:55.5]}
18. f4 {[%clk 0:10:06.1]} 18... Nc4 {[%clk 0:09:30.6]} 19. f5 {[%clk 0:09:58.9]}
19... Nxd2 {[%clk 0:09:32]} 20. Rxd2 {[%clk 0:09:53]} 20... Bxf5 {[%clk
0:09:03.8]} 21. exf5 {[%clk 0:09:51.2]} 21... Ne5 {[%clk 0:09:04.1]} 22. Nd5
{[%clk 0:09:35.7]} 22... Rg8 {[%clk 0:08:52]} 23. Nf4 {[%clk 0:09:35.1]} 23...
Bf8 {[%clk 0:08:39.2]} 24. Bf2 {[%clk 0:09:23.6]} 24... Ng4 {[%clk 0:08:02.4]}
25. Bxg4 {[%clk 0:09:19.2]} 25... Rxg4 {[%clk 0:08:02.6]} 26. Ng6 {[%clk
0:09:15.1]} 26... Bh6 {[%clk 0:08:01.7]} 27. Be1 {[%clk 0:08:55.9]} 27... Bxd2+
{[%clk 0:07:57.8]} 28. Bxd2 {[%clk 0:08:56]} 28... Rg2 {[%clk 0:07:49]} 29. Nf4
{[%clk 0:08:43.9]} 29... Rf2 {[%clk 0:07:44.3]} 30. Rg1 {[%clk 0:08:37]} 30...
Kc7 {[%clk 0:07:44.1]} 31. Nd5+ {[%clk 0:07:58.8]} 31... Kc6 {[%clk 0:07:39.9]}
32. Nxf6 {[%clk 0:07:55.3]} 32... Rg7 {[%clk 0:07:37.5]} 33. Rd1 {[%clk
0:07:21]} 33... Rxf5 {[%clk 0:07:30.3]} 34. Bc3 {[%clk 0:07:18.3]} 34... Rf7
{[%clk 0:07:23.3]} 35. Ne4 {[%clk 0:07:05.9]} 35... d5 {[%clk 0:07:03.8]} 36.
Ng5 {[%clk 0:06:44.5]} 36... Rd7 {[%clk 0:06:46.8]} 37. Ne6 {[%clk 0:06:32.6]}
37... Kd6 {[%clk 0:05:59.3]} 38. Nd4 {[%clk 0:06:28.5]} 38... Rf4 {[%clk
0:05:43]} 39. Bb4+ {[%clk 0:05:41.9]} 39... Ke5 {[%clk 0:05:24.8]} 40. c3 {[%clk
0:05:27.2]} 40... Rc7 {[%clk 0:05:00.6]} 41. Re1+ {[%clk 0:05:03.1]} 41... Kf6
{[%clk 0:04:50]} 42. Bd6 {[%clk 0:04:55.4]} 42... Rxd4 {[%clk 0:04:33.2]} 43.
Bxc7 {[%clk 0:04:51.5]} 43... Rg4 {[%clk 0:04:30.3]} 44. Kc2 {[%clk 0:04:26]}
44... Kf5 {[%clk 0:04:24.5]} 45. Re5+ {[%clk 0:04:19.1]} 45... Kf4 {[%clk
0:04:13.3]} 46. Rxd5+ {[%clk 0:04:17]} 46... Ke4 {[%clk 0:04:12.3]} 47. Rd4+
{[%clk 0:04:17.6]} 47... Kf3 {[%clk 0:04:12.9]} 48. Rxg4 {[%clk 0:04:17.8]}
48... hxg4 {[%clk 0:04:13.8]} 49. Kd3 {[%clk 0:04:14.2]} 1-0

[Event "Rapid della Domenica"]
[Site "Chess.com"]
[Date "2020.05.24"]
[Round "4"]
[White "APipitone"]
[Black "Carbon"]
[Result "0-1"]
[WhiteElo "1569"]
[BlackElo "1761"]
[TimeControl "720+3"]
[EndTime "7:40:41 PDT"]
[Termination "Carbon ha vinto per abbandono"]

1. e4 {[%clk 0:11:56.8]} 1... e6 {[%clk 0:11:50.1]} 2. d4 {[%clk 0:11:56.1]}
2... d5 {[%clk 0:11:51.9]} 3. Nc3 {[%clk 0:11:52]} 3... Nf6 {[%clk 0:11:51.6]}
4. e5 {[%clk 0:11:51.2]} 4... Nfd7 {[%clk 0:11:53.5]} 5. f4 {[%clk 0:11:49.1]}
5... c5 {[%clk 0:11:54.1]} 6. Nf3 {[%clk 0:11:48.4]} 6... Nc6 {[%clk 0:11:55.7]}
7. Be2 {[%clk 0:11:38.4]} 7... cxd4 {[%clk 0:11:41]} 8. Nxd4 {[%clk 0:11:37.5]}
8... Nxd4 {[%clk 0:11:36.6]} 9. Qxd4 {[%clk 0:11:37.5]} 9... Bc5 {[%clk
0:11:36.9]} 10. Qd3 {[%clk 0:11:31.3]} 10... a6 {[%clk 0:11:16.3]} 11. Be3
{[%clk 0:11:30.1]} 11... O-O {[%clk 0:11:02.3]} 12. Bxc5 {[%clk 0:11:11.5]}
12... Nxc5 {[%clk 0:11:02.9]} 13. Qe3 {[%clk 0:11:02.5]} 13... d4 {[%clk
0:10:22.2]} 14. Qf2 {[%clk 0:10:56]} 14... dxc3 {[%clk 0:10:20.7]} 15. Qxc5
{[%clk 0:10:23.2]} 15... Qd2+ {[%clk 0:10:19.4]} 16. Kf1 {[%clk 0:10:09.1]}
16... cxb2 {[%clk 0:10:09.5]} 17. Rd1 {[%clk 0:09:56.1]} 17... Qxf4+ {[%clk
0:09:46.7]} 18. Bf3 {[%clk 0:09:46.2]} 18... Bd7 {[%clk 0:09:34.9]} 19. Kf2
{[%clk 0:09:14.9]} 19... Bc6 {[%clk 0:09:21.4]} 20. Rd4 {[%clk 0:08:55.7]} 20...
Qc1 {[%clk 0:07:57.1]} 21. Rdd1 {[%clk 0:08:38]} 21... Qf4 {[%clk 0:07:56.5]}
22. Qb6 {[%clk 0:08:25.7]} 22... Bxf3 {[%clk 0:07:53.3]} 23. gxf3 {[%clk
0:08:22.5]} 23... Qxe5 {[%clk 0:07:51.5]} 24. Rb1 {[%clk 0:07:55.3]} 24... Rad8
{[%clk 0:07:39.5]} 25. Qe3 {[%clk 0:07:10.8]} 25... Qb5 {[%clk 0:07:16.7]} 26.
Rhg1 {[%clk 0:07:00.8]} 26... Rd5 {[%clk 0:06:54.5]} 27. Rg4 {[%clk 0:05:46.1]}
27... Rc8 {[%clk 0:05:54.5]} 28. c4 {[%clk 0:03:48.5]} 28... Rxc4 {[%clk
0:05:30.2]} 29. Rxc4 {[%clk 0:03:46.2]} 29... Qxc4 {[%clk 0:05:27.9]} 30. Rxb2
{[%clk 0:03:46.8]} 30... b5 {[%clk 0:05:00.9]} 31. Kg3 {[%clk 0:03:32.2]} 31...
Rh5 {[%clk 0:04:37.8]} 32. f4 {[%clk 0:03:17.2]} 32... Rd5 {[%clk 0:04:36]} 33.
Qa7 {[%clk 0:02:45.1]} 33... Qc3+ {[%clk 0:03:55.3]} 34. Kg4 {[%clk 0:01:32.6]}
34... h5+ {[%clk 0:03:42.2]} 35. Kh4 {[%clk 0:01:09.7]} 35... Qxb2 {[%clk
0:03:05.7]} 0-1

[Event "Rapid della Domenica"]
[Site "Chess.com"]
[Date "2020.05.24"]
[Round "4"]
[White "Mrtre7"]
[Black "pedrak"]
[Result "1/2-1/2"]
[WhiteElo "1428"]
[BlackElo "1678"]
[TimeControl "720+3"]
[EndTime "7:44:21 PDT"]
[Termination "Patta d'accordo"]

1. d4 {[%clk 0:11:46.3]} 1... d5 {[%clk 0:12:00.7]} 2. c4 {[%clk 0:11:42.2]}
2... e6 {[%clk 0:12:00.5]} 3. Nc3 {[%clk 0:11:43]} 3... c6 {[%clk 0:12:01.6]} 4.
e3 {[%clk 0:11:32.7]} 4... Nf6 {[%clk 0:11:53.4]} 5. Bd3 {[%clk 0:11:29.7]} 5...
Bd6 {[%clk 0:11:53.9]} 6. Nf3 {[%clk 0:11:17.5]} 6... Nbd7 {[%clk 0:11:54.5]} 7.
O-O {[%clk 0:11:04.8]} 7... O-O {[%clk 0:11:55.2]} 8. Re1 {[%clk 0:10:31.5]}
8... dxc4 {[%clk 0:11:38.9]} 9. Bxc4 {[%clk 0:10:31.6]} 9... e5 {[%clk
0:11:37.5]} 10. d5 {[%clk 0:09:45.5]} 10... e4 {[%clk 0:11:20]} 11. Ng5 {[%clk
0:09:21.2]} 11... Qe7 {[%clk 0:10:53.2]} 12. dxc6 {[%clk 0:08:26.6]} 12... bxc6
{[%clk 0:10:49.7]} 13. Qc2 {[%clk 0:07:39.7]} 13... Ng4 {[%clk 0:10:19.6]} 14.
Ngxe4 {[%clk 0:06:08.2]} 14... Bxh2+ {[%clk 0:10:16.8]} 15. Kf1 {[%clk
0:05:54.7]} 15... Be5 {[%clk 0:09:55.1]} 16. Be2 {[%clk 0:04:41.4]} 16... f5
{[%clk 0:08:31]} 17. Bxg4 {[%clk 0:04:13]} 17... fxg4 {[%clk 0:08:32]} 18. Ne2
{[%clk 0:03:22.1]} 18... c5 {[%clk 0:07:56.7]} 19. Bd2 {[%clk 0:03:16.3]} 19...
Ba6 {[%clk 0:07:37]} 20. Kg1 {[%clk 0:03:12.2]} 20... Qh4 {[%clk 0:07:37.1]} 21.
N2g3 {[%clk 0:03:12.8]} 21... Rxf2 {[%clk 0:05:31]} 22. Kxf2 {[%clk 0:02:18.7]}
22... Rf8+ {[%clk 0:05:30.9]} 23. Kg1 {[%clk 0:02:17.4]} 23... Bxg3 {[%clk
0:05:18.4]} 24. Nxg3 {[%clk 0:02:07.6]} 24... Qxg3 {[%clk 0:05:19.3]} 25. Bc3
{[%clk 0:01:55.4]} 25... Qh4 {[%clk 0:05:14.8]} 26. Rad1 {[%clk 0:01:32.8]}
26... g3 {[%clk 0:05:14.4]} 27. Qb3+ {[%clk 0:00:31.8]} 27... Kh8 {[%clk
0:05:13.8]} 28. Bxg7+ {[%clk 0:00:33.2]} 28... Kxg7 {[%clk 0:05:03.8]} 29. Rxd7+
{[%clk 0:00:35.1]} 29... Kg6 {[%clk 0:03:08.8]} 30. Qe6+ {[%clk 0:00:35.7]}
30... Rf6 {[%clk 0:02:56.5]} 31. Qh3 {[%clk 0:00:33.5]} 31... Qxh3 {[%clk
0:02:22.6]} 32. gxh3 {[%clk 0:00:35.2]} 32... Bc8 {[%clk 0:02:08.4]} 33. Rxa7
{[%clk 0:00:13]} 33... Bxh3 {[%clk 0:02:09.5]} 34. Rc7 {[%clk 0:00:11.8]} 34...
Rf2 {[%clk 0:02:05.3]} 35. Rc6+ {[%clk 0:00:10]} 35... Kf7 {[%clk 0:02:03.6]}
36. Rxc5 {[%clk 0:00:11.5]} 36... Rxb2 {[%clk 0:02:05]} 37. Rd1 {[%clk
0:00:10.6]} 37... Rg2+ {[%clk 0:02:03.1]} 38. Kh1 {[%clk 0:00:12]} 38... Rh2+
{[%clk 0:02:04.4]} 39. Kg1 {[%clk 0:00:13.7]} 39... Rxa2 {[%clk 0:02:05.9]} 40.
e4 {[%clk 0:00:13.3]} 40... Ra4 {[%clk 0:01:58.7]} 41. e5 {[%clk 0:00:14.8]}
41... Re4 {[%clk 0:02:00.4]} 42. Rc7+ {[%clk 0:00:14]} 42... Ke6 {[%clk
0:01:59.6]} 43. Rd8 {[%clk 0:00:14]} 43... Bf5 {[%clk 0:01:58.6]} 44. Re8+
{[%clk 0:00:15.1]} 44... Kd5 {[%clk 0:01:58.6]} 45. Rd8+ {[%clk 0:00:12.2]}
45... Kxe5 {[%clk 0:01:58]} 46. Re8+ {[%clk 0:00:14.1]} 46... Kf4 {[%clk
0:01:59.7]} 47. Rxe4+ {[%clk 0:00:15.7]} 47... Kxe4 {[%clk 0:02:01.6]} 48. Kg2
{[%clk 0:00:17]} 48... Kf4 {[%clk 0:02:02.4]} 49. Rf7 {[%clk 0:00:15.3]} 49...
Kg4 {[%clk 0:01:58.1]} 50. Rxf5 {[%clk 0:00:14.6]} 50... Kxf5 {[%clk 0:01:59.8]}
51. Kxg3 {[%clk 0:00:16.8]} 51... Kg5 {[%clk 0:02:01.5]} 52. Kh3 {[%clk
0:00:18]} 52... h5 {[%clk 0:02:02.2]} 53. Kh2 {[%clk 0:00:19.2]} 53... Kh4
{[%clk 0:02:04]} 54. Kh1 {[%clk 0:00:14.2]} 54... Kh3 {[%clk 0:02:05.4]} 55. Kg1
{[%clk 0:00:16.1]} 1/2-1/2

[Event "Rapid della Domenica"]
[Site "Chess.com"]
[Date "2020.05.24"]
[Round "5"]
[White "Carbon"]
[Black "pedrak"]
[Result "1-0"]
[WhiteElo "1769"]
[BlackElo "1672"]
[TimeControl "720+3"]
[EndTime "7:52:30 PDT"]
[Termination "Carbon ha vinto per abbandono"]

1. e4 {[%clk 0:12:00.7]} 1... Nf6 {[%clk 0:11:57.4]} 2. Nc3 {[%clk 0:12:00]}
2... d5 {[%clk 0:11:58.2]} 3. e5 {[%clk 0:11:11.2]} 3... d4 {[%clk 0:11:58.4]}
4. exf6 {[%clk 0:10:08.4]} 4... dxc3 {[%clk 0:11:59.1]} 5. fxg7 {[%clk
0:10:01.3]} 5... cxd2+ {[%clk 0:11:59.1]} 6. Qxd2 {[%clk 0:09:43.7]} 6... Bxg7
{[%clk 0:11:59.6]} 7. Qxd8+ {[%clk 0:09:35.5]} 7... Kxd8 {[%clk 0:12:00.8]} 8.
Bc4 {[%clk 0:09:33]} 8... e6 {[%clk 0:11:44.8]} 9. c3 {[%clk 0:09:32.7]} 9... b6
{[%clk 0:11:39.5]} 10. Bg5+ {[%clk 0:09:02.5]} 10... f6 {[%clk 0:11:39.4]} 11.
Be3 {[%clk 0:08:52.9]} 11... Ke7 {[%clk 0:11:37.4]} 12. O-O-O {[%clk 0:08:46.7]}
12... Bb7 {[%clk 0:11:37.4]} 13. Nf3 {[%clk 0:08:45.5]} 13... Nc6 {[%clk
0:11:25.9]} 14. Rhe1 {[%clk 0:08:34.3]} 14... Na5 {[%clk 0:11:21]} 15. Bxe6
{[%clk 0:08:19.8]} 15... Bxf3 {[%clk 0:11:16.6]} 16. gxf3 {[%clk 0:08:13.2]}
16... Rhd8 {[%clk 0:10:58]} 17. Bd5 {[%clk 0:07:55.5]} 17... c6 {[%clk
0:10:44.4]} 18. Bxb6+ {[%clk 0:07:44.1]} 18... Kf8 {[%clk 0:10:46.4]} 19. Bc5+
{[%clk 0:07:34.3]} 1-0

[Event "Rapid della Domenica"]
[Site "Chess.com"]
[Date "2020.05.24"]
[Round "5"]
[White "SanSecondoPR"]
[Black "crippo"]
[Result "0-1"]
[WhiteElo "1317"]
[BlackElo "1565"]
[TimeControl "720+3"]
[EndTime "7:56:42 PDT"]
[Termination "crippo ha vinto per abbandono"]

1. e4 {[%clk 0:12:02.9]} 1... e5 {[%clk 0:12:01.1]} 2. d4 {[%clk 0:12:03]} 2...
exd4 {[%clk 0:12:02.3]} 3. c3 {[%clk 0:12:02.8]} 3... dxc3 {[%clk 0:12:03.7]} 4.
Bc4 {[%clk 0:12:02.4]} 4... Nc6 {[%clk 0:12:05.5]} 5. Nxc3 {[%clk 0:11:56.3]}
5... d6 {[%clk 0:12:07.4]} 6. Qb3 {[%clk 0:11:53.6]} 6... Qe7 {[%clk 0:12:07.1]}
7. Nf3 {[%clk 0:11:52.4]} 7... Nf6 {[%clk 0:12:04.2]} 8. O-O {[%clk 0:11:51.2]}
8... Qd7 {[%clk 0:11:55.1]} 9. e5 {[%clk 0:11:40.4]} 9... dxe5 {[%clk
0:11:54.7]} 10. Rd1 {[%clk 0:11:24.2]} 10... Qe7 {[%clk 0:11:55.9]} 11. Bg5
{[%clk 0:11:12.1]} 11... h6 {[%clk 0:11:56.3]} 12. Nd5 {[%clk 0:11:04.7]} 12...
Qc5 {[%clk 0:11:42.9]} 13. Bxf6 {[%clk 0:10:49.6]} 13... gxf6 {[%clk 0:11:44]}
14. Nxf6+ {[%clk 0:10:45.4]} 14... Ke7 {[%clk 0:11:43.9]} 15. Nd5+ {[%clk
0:10:34.8]} 15... Kd8 {[%clk 0:11:43.7]} 16. Nf6+ {[%clk 0:10:18]} 16... Bd6
{[%clk 0:11:45.2]} 17. Rd5 {[%clk 0:10:08.2]} 17... Qb6 {[%clk 0:11:44.3]} 18.
Qc2 {[%clk 0:09:50]} 18... Nb4 {[%clk 0:11:38.8]} 19. Qc3 {[%clk 0:09:35.1]}
19... Nxd5 {[%clk 0:11:40]} 20. Nxd5 {[%clk 0:09:31.5]} 20... Qc5 {[%clk
0:11:36.4]} 21. b4 {[%clk 0:09:20.8]} 21... Qc6 {[%clk 0:11:38]} 22. Rd1 {[%clk
0:09:10]} 22... Be6 {[%clk 0:11:38]} 23. Nxe5 {[%clk 0:08:48]} 23... Qe8 {[%clk
0:11:39.2]} 24. Nf6 {[%clk 0:08:39.5]} 24... Qe7 {[%clk 0:11:40.5]} 25. Ne4
{[%clk 0:08:32.7]} 25... Rg8 {[%clk 0:11:28.7]} 26. Nxd6 {[%clk 0:08:03.2]}
26... cxd6 {[%clk 0:11:28.8]} 27. Nf3 {[%clk 0:07:41.1]} 27... Rc8 {[%clk
0:11:27.7]} 28. Rd4 {[%clk 0:07:22.7]} 28... d5 {[%clk 0:11:14]} 29. Ne5 {[%clk
0:07:04.3]} 29... Qg5 {[%clk 0:11:05.4]} 30. Qg3 {[%clk 0:05:38.3]} 30... Rxc4
{[%clk 0:10:45.5]} 31. f4 {[%clk 0:05:10.9]} 31... Qxg3 {[%clk 0:10:43.7]} 32.
hxg3 {[%clk 0:04:59.7]} 32... Rxd4 {[%clk 0:10:45.7]} 33. Nf3 {[%clk 0:04:50]}
33... Rxb4 {[%clk 0:10:46.8]} 0-1

[Event "Rapid della Domenica"]
[Site "Chess.com"]
[Date "2020.05.24"]
[Round "5"]
[White "malberici"]
[Black "APipitone"]
[Result "1-0"]
[WhiteElo "1456"]
[BlackElo "1503"]
[TimeControl "720+3"]
[EndTime "7:59:02 PDT"]
[Termination "malberici ha vinto per abbandono"]

1. d4 {[%clk 0:12:02.9]} 1... Nf6 {[%clk 0:12:00.1]} 2. c4 {[%clk 0:12:03.5]}
2... d5 {[%clk 0:11:59.5]} 3. cxd5 {[%clk 0:12:02.5]} 3... Nxd5 {[%clk
0:11:59.6]} 4. Nf3 {[%clk 0:12:02.7]} 4... Nc6 {[%clk 0:11:57.8]} 5. e3 {[%clk
0:12:04.3]} 5... Bg4 {[%clk 0:11:39.1]} 6. Be2 {[%clk 0:11:58.5]} 6... g6 {[%clk
0:11:34.7]} 7. O-O {[%clk 0:11:58.9]} 7... Bg7 {[%clk 0:11:34.8]} 8. Nc3 {[%clk
0:11:49.1]} 8... e6 {[%clk 0:11:25.4]} 9. Qa4 {[%clk 0:11:18.6]} 9... O-O {[%clk
0:11:12.8]} 10. h3 {[%clk 0:11:16.8]} 10... Bxf3 {[%clk 0:11:09.1]} 11. Bxf3
{[%clk 0:11:11.9]} 11... Nxc3 {[%clk 0:11:01.5]} 12. bxc3 {[%clk 0:11:11.9]}
12... Qd7 {[%clk 0:09:58.9]} 13. Qb3 {[%clk 0:10:59.7]} 13... Na5 {[%clk
0:09:45.5]} 14. Qc2 {[%clk 0:10:55.8]} 14... Rac8 {[%clk 0:09:33.3]} 15. Rb1
{[%clk 0:10:36]} 15... b6 {[%clk 0:09:29.3]} 16. Rd1 {[%clk 0:09:46.4]} 16...
Rfd8 {[%clk 0:09:20.1]} 17. e4 {[%clk 0:09:26.9]} 17... c5 {[%clk 0:09:10.7]}
18. Qd2 {[%clk 0:09:11.8]} 18... cxd4 {[%clk 0:09:06.3]} 19. cxd4 {[%clk
0:09:08.3]} 19... Bxd4 {[%clk 0:08:55.4]} 20. Bb2 {[%clk 0:08:53.1]} 20... Bxf2+
{[%clk 0:07:58.7]} 21. Qxf2 {[%clk 0:08:50.6]} 21... Qxd1+ {[%clk 0:07:58.9]}
22. Bxd1 {[%clk 0:08:51.1]} 22... Nc4 {[%clk 0:07:29.2]} 23. Ba1 {[%clk
0:08:34.9]} 23... Rd2 {[%clk 0:07:21.9]} 24. Qf6 {[%clk 0:08:32.4]} 24... e5
{[%clk 0:07:09.6]} 25. Bb3 {[%clk 0:08:11]} 25... Rd6 {[%clk 0:06:43.4]} 26. Qe7
{[%clk 0:07:49.3]} 26... Re6 {[%clk 0:06:03.6]} 27. Qd7 {[%clk 0:07:31.5]} 27...
a5 {[%clk 0:05:33.9]} 28. Qxc8+ {[%clk 0:07:23.8]} 1-0

[Event "Rapid della Domenica"]
[Site "Chess.com"]
[Date "2020.05.24"]
[Round "5"]
[White "sirmale49"]
[Black "Mrtre7"]
[Result "0-1"]
[WhiteElo "1372"]
[BlackElo "1436"]
[TimeControl "720+3"]
[EndTime "8:03:18 PDT"]
[Termination "Mrtre7 ha vinto per abbandono"]

1. f4 {[%clk 0:12:02.8]} 1... d5 {[%clk 0:11:52.1]} 2. Nf3 {[%clk 0:12:04.3]}
2... c5 {[%clk 0:11:32.2]} 3. e3 {[%clk 0:12:06]} 3... g6 {[%clk 0:11:26.9]} 4.
g3 {[%clk 0:12:03.9]} 4... Bg7 {[%clk 0:11:26]} 5. d4 {[%clk 0:11:59.8]} 5...
cxd4 {[%clk 0:11:19.4]} 6. Nxd4 {[%clk 0:11:57.8]} 6... Nc6 {[%clk 0:11:19.3]}
7. c3 {[%clk 0:11:52.2]} 7... Nf6 {[%clk 0:11:15.5]} 8. Bg2 {[%clk 0:11:49.7]}
8... O-O {[%clk 0:11:14.1]} 9. Nd2 {[%clk 0:11:41.6]} 9... Re8 {[%clk 0:10:44]}
10. O-O {[%clk 0:11:39.6]} 10... Ng4 {[%clk 0:10:07.1]} 11. N2b3 {[%clk
0:10:52.6]} 11... e5 {[%clk 0:10:07]} 12. Nxc6 {[%clk 0:10:44.2]} 12... bxc6
{[%clk 0:10:07.9]} 13. e4 {[%clk 0:10:14.6]} 13... exf4 {[%clk 0:09:20.6]} 14.
Rxf4 {[%clk 0:10:05.3]} 14... Qb6+ {[%clk 0:08:34.7]} 15. Nd4 {[%clk 0:09:59]}
15... Nf6 {[%clk 0:06:41.3]} 16. Qf3 {[%clk 0:08:18.1]} 16... dxe4 {[%clk
0:06:26.2]} 17. Qe3 {[%clk 0:08:08.6]} 17... Nd5 {[%clk 0:06:13.7]} 18. Rxe4
{[%clk 0:07:30.4]} 18... Nxe3 {[%clk 0:06:03.1]} 19. Rxe8+ {[%clk 0:07:29]}
19... Bf8 {[%clk 0:06:05.1]} 20. Rxe3 {[%clk 0:07:26.7]} 20... Bb7 {[%clk
0:05:40.1]} 21. Bd2 {[%clk 0:07:07.2]} 21... Bh6 {[%clk 0:05:10.4]} 22. Re2
{[%clk 0:06:56]} 22... Bxd2 {[%clk 0:04:45.4]} 23. Rxd2 {[%clk 0:06:55.2]} 23...
Rd8 {[%clk 0:04:37.9]} 24. Rad1 {[%clk 0:06:48.4]} 24... c5 {[%clk 0:03:09.8]}
25. Bxb7 {[%clk 0:06:47.2]} 25... cxd4 {[%clk 0:03:07.9]} 26. cxd4 {[%clk
0:06:13.4]} 26... Qxb7 {[%clk 0:03:05.7]} 27. Kf1 {[%clk 0:05:58.7]} 27... Qf3+
{[%clk 0:02:45.7]} 28. Ke1 {[%clk 0:05:55.1]} 28... Re8+ {[%clk 0:02:46]} 0-1

[Event "Rapid della Domenica"]
[Site "Chess.com"]
[Date "2020.05.24"]
[Round "5"]
[White "toninoiuorio"]
[Black "laremaro"]
[Result "1/2-1/2"]
[WhiteElo "1552"]
[BlackElo "1572"]
[TimeControl "720+3"]
[EndTime "8:12:37 PDT"]
[Termination "Partita patta per ripetizione di mosse"]

1. d4 {[%clk 0:12:02.9]} 1... Nf6 {[%clk 0:12:00.7]} 2. c4 {[%clk 0:12:04.6]}
2... e6 {[%clk 0:12:01.8]} 3. Nc3 {[%clk 0:12:06.2]} 3... d5 {[%clk 0:12:03.9]}
4. cxd5 {[%clk 0:12:07.3]} 4... exd5 {[%clk 0:12:04.9]} 5. Bg5 {[%clk
0:12:08.5]} 5... Be7 {[%clk 0:12:05.6]} 6. e3 {[%clk 0:12:09.8]} 6... O-O {[%clk
0:12:07.5]} 7. Qc2 {[%clk 0:12:10.6]} 7... Bg4 {[%clk 0:11:23.3]} 8. Bd3 {[%clk
0:11:27.5]} 8... Nbd7 {[%clk 0:11:03.5]} 9. Nf3 {[%clk 0:10:14.1]} 9... c5
{[%clk 0:10:31.7]} 10. Ne5 {[%clk 0:10:00]} 10... cxd4 {[%clk 0:10:19.2]} 11.
exd4 {[%clk 0:09:53.8]} 11... h6 {[%clk 0:09:51.8]} 12. Bxf6 {[%clk 0:09:43.3]}
12... Nxf6 {[%clk 0:09:43.4]} 13. f4 {[%clk 0:09:33.2]} 13... Rc8 {[%clk
0:09:27.5]} 14. Qb3 {[%clk 0:09:23.2]} 14... Re8 {[%clk 0:09:04.5]} 15. Nxg4
{[%clk 0:09:09.3]} 15... Nxg4 {[%clk 0:09:03.7]} 16. O-O {[%clk 0:08:53.6]}
16... Bf6 {[%clk 0:07:16.6]} 17. Ne2 {[%clk 0:08:31.4]} 17... Rxe2 {[%clk
0:06:10.7]} 18. Bxe2 {[%clk 0:07:31.8]} 18... Bxd4+ {[%clk 0:06:10]} 19. Kh1
{[%clk 0:07:26.2]} 19... Nf2+ {[%clk 0:06:08.5]} 20. Rxf2 {[%clk 0:07:13.2]}
20... Bxf2 {[%clk 0:06:09.2]} 21. Rd1 {[%clk 0:07:15.6]} 21... Qe7 {[%clk
0:05:31.2]} 22. Bg4 {[%clk 0:05:42.5]} 22... Re8 {[%clk 0:05:20.2]} 23. Qd3
{[%clk 0:05:24.9]} 23... Qe1+ {[%clk 0:05:12.5]} 24. Qf1 {[%clk 0:05:17.9]}
24... Qxd1 {[%clk 0:04:55.9]} 25. Qxd1 {[%clk 0:05:04.2]} 25... Re1+ {[%clk
0:04:56.3]} 26. Qxe1 {[%clk 0:05:04.1]} 26... Bxe1 {[%clk 0:04:58.3]} 27. g3
{[%clk 0:04:56.8]} 27... Kf8 {[%clk 0:04:48.6]} 28. Bf3 {[%clk 0:04:52]} 28...
d4 {[%clk 0:04:48.7]} 29. Kg2 {[%clk 0:04:48.2]} 29... b6 {[%clk 0:04:47]} 30.
Bb7 {[%clk 0:04:42.7]} 30... Ke7 {[%clk 0:04:35.9]} 31. Ba6 {[%clk 0:04:38.1]}
31... Kd6 {[%clk 0:04:28.6]} 32. a4 {[%clk 0:04:35]} 32... Kc5 {[%clk
0:04:24.8]} 33. b3 {[%clk 0:04:28.2]} 33... Kb4 {[%clk 0:04:21.6]} 34. Kf1
{[%clk 0:04:12.3]} 34... Bd2 {[%clk 0:04:22.9]} 35. Bc4 {[%clk 0:04:07.3]} 35...
Kc3 {[%clk 0:04:21]} 36. h3 {[%clk 0:03:58.1]} 36... f6 {[%clk 0:04:18.1]} 37.
Ke2 {[%clk 0:03:55]} 37... Bc1 {[%clk 0:04:08.5]} 38. Bb5 {[%clk 0:03:38.8]}
38... Ba3 {[%clk 0:04:02.9]} 39. Bc4 {[%clk 0:03:29.1]} 39... Bd6 {[%clk
0:03:57.7]} 40. Bb5 {[%clk 0:03:22.3]} 40... Kxb3 {[%clk 0:03:12]} 41. Kd2
{[%clk 0:03:16.5]} 41... a6 {[%clk 0:03:05.6]} 42. Bd7 {[%clk 0:03:11]} 42...
Kb4 {[%clk 0:02:33.9]} 43. Kc2 {[%clk 0:03:06.9]} 43... Bc5 {[%clk 0:02:31]} 44.
g4 {[%clk 0:03:02]} 44... b5 {[%clk 0:02:22.7]} 45. axb5 {[%clk 0:02:57.9]}
45... axb5 {[%clk 0:02:24.3]} 46. Kd2 {[%clk 0:02:54]} 46... Bd6 {[%clk
0:02:19.6]} 47. Kd3 {[%clk 0:02:47.3]} 47... Bxf4 {[%clk 0:02:11.4]} 48. Kxd4
{[%clk 0:02:43.6]} 48... Ka5 {[%clk 0:01:54.7]} 49. Bf5 {[%clk 0:02:37.9]} 49...
b4 {[%clk 0:01:54]} 50. Ke4 {[%clk 0:02:30.5]} 50... Be5 {[%clk 0:01:54.1]} 51.
Kd3 {[%clk 0:02:26.2]} 51... b3 {[%clk 0:01:53.7]} 52. h4 {[%clk 0:02:20.9]}
52... b2 {[%clk 0:01:53.7]} 53. Kc2 {[%clk 0:02:14.8]} 53... Kb4 {[%clk
0:01:54.2]} 54. Be4 {[%clk 0:02:05.7]} 54... Kc5 {[%clk 0:01:51.5]} 55. Bf5
{[%clk 0:02:01.1]} 55... Kd6 {[%clk 0:01:47.4]} 56. Bh7 {[%clk 0:01:56.7]} 56...
Ke7 {[%clk 0:01:48.8]} 57. Bf5 {[%clk 0:01:52]} 57... Kd6 {[%clk 0:01:50.3]} 58.
Bh7 {[%clk 0:01:49.6]} 58... Ke7 {[%clk 0:01:46.8]} 59. Bf5 {[%clk 0:01:45.2]}
59... Kf7 {[%clk 0:01:48]} 60. h5 {[%clk 0:01:41.7]} 60... Ke7 {[%clk
0:01:44.6]} 61. Kb3 {[%clk 0:01:38.8]} 61... Kd6 {[%clk 0:01:43.2]} 62. Kc2
{[%clk 0:01:40.5]} 62... Kc5 {[%clk 0:01:43]} 63. Kb1 {[%clk 0:01:40.3]} 63...
Kd4 {[%clk 0:01:44.5]} 64. Be6 {[%clk 0:01:37.8]} 64... Kc3 {[%clk 0:01:45.2]}
65. Bd7 {[%clk 0:01:39.1]} 65... Kd2 {[%clk 0:01:46.2]} 66. Bf5 {[%clk
0:01:40.5]} 66... Ke3 {[%clk 0:01:47.7]} 67. Be6 {[%clk 0:01:42.2]} 67... Kf4
{[%clk 0:01:49.4]} 68. Bd7 {[%clk 0:01:43.8]} 68... Kg5 {[%clk 0:01:51.1]} 69.
Bf5 {[%clk 0:01:43.9]} 69... Kf4 {[%clk 0:01:53.4]} 70. Be6 {[%clk 0:01:45.4]}
70... Kg5 {[%clk 0:01:54.7]} 71. Bf5 {[%clk 0:01:47.2]} 71... Kf4 {[%clk
0:01:56.5]} 72. Be6 {[%clk 0:01:49.2]} 72... Kg5 {[%clk 0:01:58.7]} 73. Bf5
{[%clk 0:01:51.1]} 1/2-1/2